bitfinex-derivatives/quotes_BTCF0:USTF0_20250218
["timestamp","ask_amount","ask_price","bid_price","bid_amount"]
[1739905316535,0.213242,93826.0,93820.0,0.00159814]
[1739905316840,0.1966,93828.0,93820.0,0.00159814]
[1739905317434,0.1966,93828.0,93820.0,0.05381231]
[1739905317745,0.1966,93828.0,93820.0,0.00159814]
[1739905318042,0.1966,93828.0,93818.0,0.16175239]
[1739905318043,0.3608,93821.0,93818.0,0.16175239]
[1739905318247,0.007,93826.0,93818.0,0.16175239]
[1739905319142,0.007,93826.0,93818.0,0.05333464]
[1739905319438,0.007,93826.0,93816.0,0.3608]
[1739905319743,0.1896,93828.0,93827.0,0.2132392]
[1739905320042,0.21566567,93835.0,93827.0,0.2132392]
[1739905320238,0.21566567,93835.0,93825.0,0.3608]
[1739905320239,0.1976,93851.0,93834.0,0.3608]
[1739905320440,0.167,93861.0,93852.0,0.2131818]
[1739905320644,0.167,93861.0,93835.0,0.4056]
[1739905320645,0.3608,93859.0,93835.0,0.2045]
[1739905320844,0.3608,93859.0,93833.0,0.214823]
[1739905320845,0.13031135,93845.0,93833.0,0.214823]
[1739905321038,0.3608,93843.0,93831.0,0.3608]
[1739905321237,0.11948,93842.0,93841.0,0.2132074]
[1739905321447,0.3608,93851.0,93840.0,0.3608]
[1739905321448,0.00015986,93846.0,93840.0,0.3608]
[1739905321637,0.00015986,93846.0,93841.0,0.1949]
[1739905321837,0.00015986,93846.0,93842.0,0.2132051]
[1739905322645,0.57314596,93851.0,93842.0,0.2132051]
[1739905322843,0.2131892,93849.0,93841.0,0.1949]
[1739905323352,0.007,93846.0,93842.0,0.001]
[1739905323545,0.213199,93845.0,93842.0,0.001]
[1739905323746,0.3608,93843.0,93842.0,0.001]
[1739905325543,0.11948,93834.0,93831.0,0.3608]
[1739905326248,0.1978,93833.0,93831.0,0.3608]
[1739905326445,0.2132347,93829.0,93828.0,0.00015986]
[1739905327146,0.2132425,93826.0,93817.0,0.30785481]
[1739905327346,0.5265,93825.0,93817.0,0.30785481]
[1739905327544,0.7397452,93825.0,93817.0,0.30785481]
[1739905327940,0.2132619,93817.0,93807.0,0.3608]
[1739905328252,0.2132642,93816.0,93807.0,0.36095986]
[1739905328448,0.5650642,93816.0,93807.0,0.36095986]
[1739905328645,0.3518,93816.0,93807.0,0.36095986]
[1739905328846,0.5740824,93808.0,93807.0,0.05470825]
[1739905329148,0.3608,93808.0,93807.0,0.05470825]
[1739905329349,0.3518,93816.0,93807.0,0.05470825]
[1739905329550,0.3508,93816.0,93807.0,0.05470825]
[1739905329949,0.3508,93816.0,93815.0,0.2132665]
[1739905330147,0.3508,93816.0,93815.0,0.16016145]
[1739905330347,0.3508,93816.0,93808.0,0.213281]
[1739905330552,0.3508,93816.0,93809.0,0.2132782]
[1739905330749,0.3578,93816.0,93807.0,0.05570825]
[1739905330949,0.3578,93816.0,93810.0,0.3608]
[1739905331456,0.11848,93815.0,93810.0,0.3608]
[1739905331658,0.11948,93814.0,93813.0,0.2132703]
[1739905331853,0.30609553,93816.0,93813.0,0.2132703]
[1739905332250,0.30609553,93816.0,93810.0,0.3608]
[1739905332843,0.2132744,93812.0,93810.0,0.3608]
[1739905333056,0.2132806,93809.0,93807.0,0.0016032]
[1739905333359,0.5740806,93809.0,93800.0,0.1]
[1739905333553,0.1755,93808.0,93800.0,0.1]
[1739905334051,0.3608,93809.0,93806.0,0.2132855]
[1739905334241,0.3608,93809.0,93806.0,0.05241939]
[1739905334443,0.007,93812.0,93810.0,0.2132772]
[1739905334754,0.1755,93825.0,93803.0,0.3608]
[1739905334755,0.3608,93838.0,93824.0,0.2132455]
[1739905335058,0.1607,93828.0,93824.0,0.2132455]
[1739905335250,0.1607,93828.0,93825.0,0.1753]
[1739905335554,0.3608,93838.0,93825.0,0.1753]
[1739905335744,0.1627,93837.0,93825.0,0.1753]
[1739905336148,0.1627,93837.0,93825.0,0.12219495]
[1739905336544,0.1627,93837.0,93824.0,0.26704536]
[1739905336757,0.2132307,93831.0,93824.0,0.05379986]
[1739905336956,0.11959986,93826.0,93823.0,0.1695]
[1739905337159,0.00015986,93826.0,93823.0,0.3827477]
[1739905337458,0.00715986,93826.0,93824.0,0.2132458]
[1739905337859,0.00715986,93826.0,93822.0,0.3608]
[1739905338160,0.11944,93825.0,93822.0,0.3608]
[1739905338760,0.11944,93825.0,93822.0,0.41486139]
[1739905338959,0.00715986,93826.0,93822.0,0.41486139]
[1739905339160,0.00715986,93826.0,93813.0,0.2132696]
[1739905339465,0.00015986,93826.0,93817.0,0.2132607]
[1739905339656,0.00715986,93826.0,93822.0,0.2132505]
[1739905340062,0.00015986,93826.0,93822.0,0.2132505]
[1739905340358,0.00715986,93826.0,93810.0,0.13031135]
[1739905340662,0.11944,93825.0,93823.0,0.2132481]
[1739905340959,0.00715986,93826.0,93824.0,0.2132444]
[1739905341361,0.00715986,93826.0,93825.0,0.2132438]
[1739905342259,0.00715986,93826.0,93825.0,0.16013875]
[1739905342658,0.00015986,93826.0,93825.0,0.16013875]
[1739905343365,0.00715986,93826.0,93825.0,0.16013875]
[1739905343855,0.00015986,93826.0,93825.0,0.16013875]
[1739905344058,0.00715986,93826.0,93825.0,0.16013875]
[1739905345364,0.00715986,93826.0,93825.0,0.1070337]
[1739905347358,0.2132529,93821.0,93819.0,0.3608]
[1739905347558,0.172,93820.0,93819.0,0.3608]
[1739905347756,0.3452,93820.0,93819.0,0.3608]
[1739905348363,0.3452,93820.0,93819.0,0.30769495]
[1739905348563,0.3452,93820.0,93819.0,0.52095235]
[1739905349769,0.3522,93820.0,93819.0,0.52095235]
[1739905350767,0.3522,93820.0,93819.0,0.2132574]
[1739905351266,0.3522,93820.0,93819.0,0.16015235]
[1739905354467,0.3522,93820.0,93819.0,0.1070473]
[1739905356371,0.5654551,93820.0,93819.0,0.1070473]
[1739905357369,0.5654551,93820.0,93817.0,0.05438229]
[1739905357673,0.5654551,93820.0,93819.0,0.2132574]
[1739905357870,0.3522,93820.0,93819.0,0.2132574]
[1739905359273,0.5654551,93820.0,93819.0,0.2132574]
[1739905359461,0.3522,93820.0,93819.0,0.2132574]
[1739905359864,0.22216287,93837.0,93819.0,0.3608]
[1739905360075,0.3306,93835.0,93834.0,0.2132233]
[1739905360464,0.3306,93835.0,93834.0,0.16011825]
[1739905361161,0.3306,93835.0,93827.0,0.3608]
[1739905361470,0.3325852,93834.0,93827.0,0.3608]
[1739905361671,0.2122252,93834.0,93832.0,0.2132277]
[1739905361973,0.5740256,93833.0,93832.0,0.2132277]
[1739905362876,0.5740256,93833.0,93832.0,0.2142277]
[1739905363075,0.2132256,93833.0,93832.0,0.2142277]
[1739905363468,0.2132256,93833.0,93832.0,0.16112265]
[1739905364069,0.2132256,93833.0,93832.0,0.001]
[1739905364475,0.3678,93833.0,93832.0,0.001]
[1739905364667,0.2132415,93826.0,93825.0,0.00015986]
[1739905366169,0.2202415,93826.0,93825.0,0.00015986]
[1739905366573,0.007,93826.0,93815.0,0.2132663]
[1739905366868,0.3608,93816.0,93800.0,0.1]
[1739905367078,0.2132798,93810.0,93800.0,0.1537482]
[1739905367279,0.213269,93814.0,93808.0,0.2132823]
[1739905367871,0.1689,93813.0,93808.0,0.2132823]
[1739905368277,0.1689,93813.0,93804.0,0.2132911]
[1739905368470,0.2132805,93809.0,93808.0,0.001]
[1739905369070,0.2132805,93809.0,93807.0,0.2132845]
[1739905369575,0.2132805,93809.0,93807.0,0.16017945]
[1739905370676,0.2202805,93809.0,93808.0,0.001]
[1739905371182,0.2202805,93809.0,93800.0,0.3670488]
[1739905371183,0.2122928,93804.0,93800.0,0.3670488]
[1739905371478,0.007,93809.0,93800.0,0.3670488]
[1739905371678,0.1689,93813.0,93800.0,0.3670488]
[1739905371876,0.007,93809.0,93808.0,0.001]
[1739905372071,0.12636,93809.0,93808.0,0.001]
[1739905372276,0.11936,93809.0,93808.0,0.2132824]
[1739905372483,0.1689,93813.0,93800.0,0.1537482]
[1739905372681,0.2132826,93808.0,93804.0,0.2132914]
[1739905373278,0.2132826,93808.0,93800.0,0.10064315]
[1739905373981,0.1689,93813.0,93800.0,0.10064315]
[1739905374281,0.3608,93830.0,93810.0,0.3608]
[1739905374482,0.3608,93830.0,93829.0,0.2132347]
[1739905374681,0.3608,93830.0,93824.0,0.2132452]
[1739905374985,0.5740332,93830.0,93825.0,0.2132421]
[1739905375481,0.5740332,93830.0,93826.0,0.213241]
[1739905375684,0.5740332,93830.0,93826.0,0.16013595]
[1739905376076,0.3608,93830.0,93828.0,0.2132363]
[1739905376579,0.3608,93830.0,93829.0,0.1679]
[1739905377086,0.3608,93830.0,93829.0,0.22205228]
[1739905378385,0.3678,93830.0,93829.0,0.22205228]
[1739905378572,0.3678,93830.0,93829.0,0.16894723]
[1739905378770,0.3678,93830.0,93829.0,0.05415228]
[1739905378984,0.3678,93830.0,93823.0,0.2132462]
[1739905379281,0.5810326,93830.0,93823.0,0.26696095]
[1739905379477,0.5810326,93830.0,93824.0,0.2132455]
[1739905379676,0.5810326,93830.0,93825.0,0.2132426]
[1739905379877,0.5810326,93830.0,93818.0,0.36095986]
[1739905380084,0.3678,93830.0,93818.0,0.36095986]
[1739905380387,0.2132574,93819.0,93818.0,0.05446687]
[1739905381672,0.1664,93828.0,93818.0,0.00136182]
[1739905381875,0.007,93819.0,93818.0,0.2132597]
[1739905382990,0.007,93819.0,93818.0,0.26755604]
[1739905383582,0.1664,93828.0,93819.0,0.2132553]
[1739905383881,0.007,93828.0,93818.0,0.35030769]
[1739905384082,0.007,93828.0,93827.0,0.2132392]
[1739905384284,0.007,93819.0,93818.0,0.90136739]
[1739905384476,0.007,93819.0,93818.0,0.05429634]
[1739905384788,0.220239,93828.0,93809.0,0.13031135]
[1739905384979,0.007,93828.0,93825.0,0.213243]
[1739905385185,0.007,93828.0,93827.0,0.2132392]
[1739905385384,0.3608,93830.0,93827.0,0.2132392]
[1739905385884,0.3608,93830.0,93829.0,0.2132347]
[1739905386082,0.1637,93838.0,93818.0,0.49111135]
[1739905386287,0.1637,93838.0,93829.0,0.3608]
[1739905386484,0.2132236,93834.0,93820.0,0.30481135]
[1739905386682,0.1637,93838.0,93820.0,0.30481135]
[1739905386881,0.1637,93838.0,93835.0,0.2132204]
[1739905387083,0.2132094,93841.0,93835.0,0.2132204]
[1739905387487,0.25475788,93856.0,93835.0,0.2132204]
[1739905387783,0.25475788,93856.0,93835.0,0.16011535]
[1739905387784,0.21479734,93845.0,93835.0,0.16011535]
[1739905388090,0.00159884,93845.0,93844.0,0.2132006]
[1739905388276,0.00159884,93845.0,93844.0,0.5740006]
[1739905389179,0.163,93854.0,93850.0,0.2131848]
[1739905389375,0.16315986,93854.0,93850.0,0.2131848]
[1739905389585,0.16315986,93854.0,93845.0,0.1728]
[1739905389786,0.2131814,93853.0,93847.0,0.2131925]
[1739905390189,0.16315986,93854.0,93848.0,0.213191]
[1739905390484,0.17015986,93854.0,93852.0,0.5739816]
[1739905390688,0.00715986,93854.0,93852.0,0.5739816]
[1739905390896,0.00715986,93854.0,93852.0,0.52087655]
[1739905391091,0.007,93853.0,93852.0,0.52087655]
[1739905391583,0.00715986,93854.0,93852.0,0.52187655]
[1739905391982,0.00715986,93854.0,93853.0,0.158]
[1739905392782,0.1647,93867.0,93853.0,0.158]
[1739905392978,0.1647,93867.0,93863.0,0.3608]
[1739905393185,0.1647,93867.0,93864.0,0.1588]
[1739905393390,0.1647,93867.0,93866.0,0.2131506]
[1739905393883,0.1647,93867.0,93866.0,0.16004555]
[1739905394086,0.1717,93867.0,93866.0,0.16004555]
[1739905394484,0.1717,93867.0,93866.0,0.16104555]
[1739905395082,0.007,93867.0,93866.0,0.16104555]
[1739905395486,0.007,93867.0,93866.0,0.16031747]
[1739905396789,0.007,93867.0,93863.0,0.2131573]
[1739905396985,0.007,93867.0,93857.0,0.00015986]
[1739905396986,0.2131688,93858.0,93857.0,0.00015986]
[1739905397792,0.3608,93862.0,93857.0,0.21333036]
[1739905397989,0.1648,93861.0,93857.0,0.00015986]
[1739905398194,0.1648,93861.0,93860.0,0.2131642]
[1739905398195,0.284,93861.0,93860.0,0.2131642]
[1739905398401,0.1648,93861.0,93860.0,0.2131642]
[1739905399380,0.1719,93866.0,93865.0,0.2131529]
[1739905399985,0.1719,93866.0,93865.0,0.16004785]
[1739905400184,0.3272,93875.0,93874.0,0.2131325]
[1739905401094,0.3272,93875.0,93874.0,0.26742582]
[1739905401298,0.5403302,93875.0,93874.0,0.05429332]
[1739905401501,0.3272,93875.0,93865.0,0.13131135]
[1739905401794,0.3608,93866.0,93850.0,0.49111135]
[1739905402092,0.3608,93858.0,93850.0,0.49111135]
[1739905402298,0.48,93858.0,93850.0,0.49111135]
[1739905402494,0.6931688,93858.0,93854.0,0.2131777]
[1739905402692,0.5739688,93858.0,93854.0,0.2131777]
[1739905402887,0.3766538,93865.0,93851.0,0.16601734]
[1739905403093,0.2131557,93864.0,93850.0,0.49111135]
[1739905403294,0.2131557,93864.0,93858.0,0.2131688]
[1739905403492,0.5233,93865.0,93850.0,0.49111135]
[1739905403692,0.2131611,93862.0,93857.0,0.001]
[1739905404197,0.2131665,93859.0,93858.0,0.2131686]
[1739905404402,0.2131716,93857.0,93853.0,0.2131797]
[1739905404600,0.1625,93865.0,93853.0,0.2131797]
[1739905404902,0.2121734,93856.0,93853.0,0.2131797]
[1739905405099,0.1589,93855.0,93853.0,0.2131797]
[1739905405301,0.3217,93855.0,93850.0,0.5455432]
[1739905405501,0.3217,93855.0,93854.0,0.2131779]
[1739905405900,0.3217,93855.0,93854.0,0.16007285]
[1739905407101,0.3287,93855.0,93854.0,0.16107285]
[1739905407304,0.3287,93855.0,93854.0,0.001]
[1739905409096,0.3287,93855.0,93852.0,0.2131813]
[1739905409097,0.3287,93855.0,93852.0,0.16107625]
[1739905409495,0.3287,93855.0,93854.0,0.2131779]
[1739905410908,0.5418756,93855.0,93854.0,0.2131779]
[1739905411208,0.5418756,93855.0,93854.0,0.001]
[1739905412107,0.2131847,93851.0,93850.0,0.00015986]
[1739905412308,0.5739847,93851.0,93850.0,0.00015986]
[1739905412504,0.3608,93851.0,93850.0,0.053106]
[1739905412802,0.2132224,93835.0,93828.0,0.93067831]
[1739905413011,0.1588,93834.0,93828.0,0.93067831]
[1739905413205,0.1578,93834.0,93828.0,1.14391491]
[1739905413400,0.1578,93834.0,93829.0,0.2132327]
[1739905413801,0.1578,93834.0,93828.0,0.98407485]
[1739905414010,0.1578,93834.0,93833.0,0.2132256]
[1739905414200,0.1578,93834.0,93828.0,0.98291485]
[1739905414201,0.1568,93834.0,93828.0,0.98415485]
[1739905414398,0.1568,93834.0,93828.0,0.98291485]
[1739905414598,0.213228,93832.0,93828.0,0.98291485]
[1739905414802,0.213228,93832.0,93828.0,0.05383485]
[1739905415006,0.213228,93832.0,93828.0,0.0007298]
[1739905415206,0.213228,93832.0,93827.0,0.2132383]
[1739905415912,0.3347,93831.0,93829.0,0.001]
[1739905416306,0.3347,93831.0,93814.0,0.16601734]
[1739905416307,0.2132347,93829.0,93828.0,0.05413547]
[1739905416510,0.3608,93829.0,93810.0,0.5740766]
[1739905416711,0.3608,93818.0,93810.0,0.5740766]
[1739905417014,0.2122714,93813.0,93809.0,0.00159861]
[1739905417202,0.2122714,93813.0,93809.0,0.05381714]
[1739905417408,0.1679,93812.0,93809.0,0.00159861]
[1739905417613,0.3608,93810.0,93809.0,0.00159861]
[1739905418208,0.3608,93810.0,93803.0,0.16178616]
[1739905418509,0.213287,93806.0,93800.0,0.04689495]
[1739905418713,0.3608,93810.0,93800.0,0.04689495]
[1739905418914,0.5740787,93810.0,93801.0,0.2132982]
[1739905419314,0.2132824,93808.0,93800.0,0.2294355]
[1739905419812,0.005,93806.0,93800.0,0.4427353]
[1739905420014,0.005,93806.0,93801.0,0.2132977]
[1739905420210,0.005,93806.0,93800.0,0.2294355]
[1739905420511,0.005,93806.0,93805.0,0.2132892]
[1739905421012,0.1558,93816.0,93815.0,0.2132665]
[1739905421321,0.1558,93816.0,93810.0,0.2132761]
[1739905421506,0.1558,93816.0,93813.0,0.2132703]
[1739905421902,0.2132688,93814.0,93813.0,0.2132703]
[1739905422110,0.1558,93816.0,93813.0,0.2132703]
[1739905422915,0.007,93814.0,93806.0,0.13031135]
[1739905423306,0.2202696,93814.0,93806.0,0.13031135]
[1739905423619,0.2132719,93813.0,93810.0,0.2132772]
[1739905423817,0.1628,93816.0,93810.0,0.2132772]
[1739905424010,0.1628,93816.0,93806.0,0.13031135]
[1739905424211,0.1628,93816.0,93812.0,0.16016825]
[1739905424411,0.1628,93816.0,93806.0,0.2606227]
[1739905424611,0.007,93816.0,93815.0,0.2132665]
[1739905424914,0.007,93816.0,93815.0,0.5740665]
[1739905425502,0.00015986,93820.0,93819.0,0.2132574]
[1739905426707,0.00715986,93820.0,93819.0,0.2132574]
[1739905427415,0.00715986,93820.0,93819.0,0.16015235]
[1739905428218,0.00715986,93820.0,93815.0,0.2132652]
[1739905428515,0.00615986,93820.0,93809.0,0.3608]
[1739905428710,0.2132665,93815.0,93811.0,0.213275]
[1739905429020,0.2132665,93815.0,93812.0,0.2132731]
[1739905429021,0.329,93814.0,93812.0,0.2132731]
[1739905429520,0.329,93814.0,93813.0,0.213271]
[1739905429708,0.58121626,93820.0,93809.0,0.3608]
[1739905429905,0.3217,93834.0,93810.0,0.5880227]
[1739905430110,0.2132299,93832.0,93829.0,0.2132339]
[1739905430315,0.3217,93834.0,93820.0,0.0772063]
[1739905430506,0.3217,93834.0,93831.0,0.2132301]
[1739905430817,0.3217,93834.0,93832.0,0.2132276]
[1739905431117,0.3217,93834.0,93833.0,0.2132256]
[1739905431911,0.2132365,93829.0,93818.0,0.36095986]
[1739905432111,0.3608,93828.0,93818.0,0.00015986]
[1739905432321,0.2122574,93819.0,93818.0,0.00015986]
[1739905432823,0.6995574,93819.0,93818.0,0.00015986]
[1739905433407,0.2132671,93815.0,93808.0,0.2132822]
[1739905433613,0.4943,93819.0,93806.0,0.2132854]
[1739905433820,0.2132689,93814.0,93807.0,0.2132827]
[1739905434417,0.2132689,93814.0,93800.0,0.23073851]
[1739905434418,0.4943,93819.0,93812.0,0.2132724]
[1739905434624,0.2132598,93818.0,93812.0,0.2132724]
[1739905434828,0.2132679,93815.0,93810.0,0.2132773]
[1739905435222,0.707558,93819.0,93813.0,0.213271]
[1739905435423,0.007,93815.0,93813.0,0.213271]
[1739905435729,0.007,93815.0,93814.0,0.2132688]
[1739905435938,0.007,93815.0,93814.0,0.3682688]
[1739905436136,0.007,93815.0,93814.0,0.155]
[1739905436333,0.007,93815.0,93814.0,0.10189495]
[1739905436635,0.69350001,93819.0,93814.0,0.10189495]
[1739905436834,0.6929,93819.0,93818.0,0.2132597]
[1739905438242,0.6929,93819.0,93814.0,0.001]
[1739905438736,0.6929,93819.0,93817.0,0.2132606]
[1739905438936,0.6999,93819.0,93817.0,0.2132606]
[1739905439240,0.3391,93819.0,93817.0,0.2132606]
[1739905439441,0.3391,93819.0,93818.0,0.2132597]
[1739905439830,0.3321,93819.0,93818.0,0.2132597]
[1739905440043,0.3391,93819.0,93818.0,0.2132597]
[1739905440942,0.15618859,93819.0,93818.0,0.2132597]
[1739905441335,0.14918859,93819.0,93818.0,0.2132597]
[1739905441536,0.15618859,93819.0,93818.0,0.2142597]
[1739905442341,0.36944599,93819.0,93818.0,0.16115465]
[1739905442648,0.36944599,93819.0,93818.0,0.001]
[1739905443847,0.15618859,93819.0,93818.0,0.001]
[1739905444041,0.15618859,93819.0,93818.0,0.2142597]
[1739905444246,0.36944599,93819.0,93818.0,0.001]
[1739905445144,0.15618859,93819.0,93818.0,0.2142597]
[1739905445649,0.14918859,93819.0,93818.0,0.16115465]
[1739905445852,0.15618859,93819.0,93818.0,0.16215465]
[1739905447246,0.2132237,93834.0,93818.0,0.001]
[1739905447457,0.2132386,93828.0,93826.0,0.2132415]
[1739905448450,0.2132386,93828.0,93826.0,0.16013645]
[1739905448959,0.2202386,93828.0,93827.0,0.2132392]
[1739905449145,0.2202386,93828.0,93826.0,0.001]
[1739905449146,0.2132392,93827.0,93826.0,0.001]
[1739905450057,0.2132574,93819.0,93806.0,0.1573]
[1739905450246,0.5740574,93819.0,93806.0,0.1573]
[1739905450642,0.1548,93826.0,93806.0,0.1573]
[1739905450846,0.3322856,93825.0,93815.0,0.2132651]
[1739905451151,0.2132456,93825.0,93816.0,0.2132638]
[1739905451350,0.1538,93826.0,93810.0,0.213277]
[1739905451550,0.1538,93826.0,93810.0,0.16033181]
[1739905451551,0.2132538,93821.0,93810.0,0.16033181]
[1739905451745,0.2132538,93821.0,93811.0,0.2132749]
[1739905451956,0.2132538,93821.0,93818.0,0.001]
[1739905452452,0.2132538,93821.0,93811.0,0.2132749]
[1739905452659,0.2132538,93821.0,93818.0,0.001]
[1739905453156,0.2132556,93820.0,93818.0,0.001]
[1739905453455,0.1665,93819.0,93818.0,0.001]
[1739905454650,0.1665,93819.0,93811.0,0.16116985]
[1739905455257,0.1725,93819.0,93818.0,0.001]
[1739905455858,0.1715,93819.0,93811.0,0.16216985]
[1739905457057,0.213265,93816.0,93811.0,0.001]
[1739905457252,0.213265,93816.0,93806.0,0.3705866]
[1739905457454,0.212265,93816.0,93806.0,0.3705866]
[1739905457655,0.212265,93816.0,93807.0,0.2132845]
[1739905458060,0.212265,93816.0,93811.0,0.001]
[1739905458358,0.2132667,93815.0,93811.0,0.001]
[1739905458563,0.2132667,93815.0,93809.0,0.2132794]
[1739905459360,0.2132693,93814.0,93811.0,0.001]
[1739905459753,0.2132714,93813.0,93811.0,0.001]
[1739905460152,0.2132733,93812.0,93811.0,0.001]
[1739905460660,0.2132733,93812.0,93809.0,0.16217435]
[1739905461259,0.2202733,93812.0,93811.0,0.001]
[1739905461761,0.2132733,93812.0,93811.0,0.2132756]
[1739905461961,0.1665,93819.0,93812.0,0.2132727]
[1739905463463,0.2132733,93812.0,93811.0,0.001]
[1739905463762,0.2132915,93804.0,93800.0,0.10042716]
[1739905463963,0.3608,93814.0,93802.0,0.2132961]
[1739905463964,0.3267,93803.0,93802.0,0.2132961]
[1739905464552,0.3257,93803.0,93802.0,0.2132961]
[1739905465063,0.3317,93803.0,93802.0,0.2142961]
[1739905465762,0.5449938,93803.0,93802.0,0.2142961]
[1739905466466,0.3807938,93803.0,93802.0,0.5750961]
[1739905466666,0.3807938,93803.0,93802.0,0.16119105]
[1739905469675,0.1675,93803.0,93800.0,0.04832211]
[1739905469869,0.2132983,93802.0,93801.0,0.2132982]
[1739905471261,0.2172983,93802.0,93801.0,0.2132982]
[1739905471760,0.2132983,93801.0,93800.0,0.3608]
[1739905472063,0.2133006,93800.0,93799.0,0.2133029]
[1739905472464,0.004,93802.0,93792.0,0.00159905]
[1739905472666,0.2133165,93793.0,93792.0,0.00159905]
[1739905472965,0.13431135,93802.0,93775.0,0.16601734]
[1739905473267,0.13431135,93802.0,93770.0,0.44931152]
[1739905473268,0.2133229,93791.0,93788.0,0.2133262]
[1739905473457,0.3223,93790.0,93788.0,0.2133262]
[1739905473662,0.3223,93790.0,93789.0,0.2133256]
[1739905474567,0.3243,93790.0,93789.0,0.2133256]
[1739905475063,0.1663,93790.0,93789.0,0.2133256]
[1739905475370,0.1733,93790.0,93789.0,0.2143256]
[1739905475759,0.1733,93790.0,93789.0,0.16122055]
[1739905477761,0.10059222,93790.0,93789.0,0.16122055]
[1739905478263,0.0689263,93790.0,93789.0,0.16122055]
[1739905478868,0.0689263,93790.0,93789.0,0.1081155]
[1739905481771,0.0189263,93790.0,93789.0,0.1081155]
[1739905482076,0.0189263,93790.0,93789.0,0.2143256]
[1739905482770,0.007,93790.0,93789.0,0.2143256]
[1739905484873,0.007,93790.0,93789.0,0.16122055]
[1739905487176,0.3746128,93795.0,93794.0,0.2133142]
[1739905487885,0.2133046,93799.0,93794.0,0.30769495]
[1739905488069,0.2133046,93799.0,93798.0,0.2133051]
[1739905490066,0.213312,93795.0,93794.0,0.30769495]
[1739905490269,0.2133223,93791.0,93780.0,0.13031135]
[1739905490470,0.3288,93790.0,93789.0,0.2133256]
[1739905491079,0.3288,93790.0,93789.0,0.16022055]
[1739905491579,0.3358,93790.0,93789.0,0.16022055]
[1739905492383,0.007,93790.0,93789.0,0.16022055]
[1739905492577,0.007,93790.0,93789.0,0.32812055]
[1739905493572,0.3752984,93801.0,93789.0,0.1679]
[1739905493884,0.3752984,93801.0,93800.0,0.2133006]
[1739905494078,0.3752984,93801.0,93800.0,0.16019555]
[1739905494680,0.3822984,93801.0,93800.0,0.16019555]
[1739905497068,0.3822984,93801.0,93800.0,0.1070905]
[1739905497276,0.3772984,93801.0,93800.0,0.1070905]
[1739905497783,0.3752984,93801.0,93800.0,0.1070905]
[1739905497983,0.3822984,93801.0,93800.0,0.1080905]
[1739905499086,0.3822984,93801.0,93800.0,0.001]
[1739905499483,0.162,93801.0,93799.0,0.2133027]
[1739905499692,0.2133006,93800.0,93799.0,0.2133027]
[1739905499889,0.05791163,93800.0,93799.0,0.2133027]
[1739905500078,0.2133006,93800.0,93799.0,0.16019765]
[1739905500277,0.169,93801.0,93800.0,0.2133006]
[1739905501183,0.162,93801.0,93798.0,0.3608]
[1739905501389,0.2133029,93799.0,93798.0,0.3608]
[1739905501583,0.2133029,93799.0,93797.0,0.2133074]
[1739905501889,0.2133051,93798.0,93797.0,0.2133074]
[1739905502383,0.007,93800.0,93783.0,0.154]
[1739905502589,0.2133214,93791.0,93789.0,0.2133251]
[1739905502792,0.3304,93790.0,93789.0,0.2133251]
[1739905503185,0.3294,93790.0,93784.0,0.25908616]
[1739905503494,0.1613,93789.0,93770.0,0.13031135]
[1739905503684,0.1613,93789.0,93778.0,0.2133484]
[1739905503991,0.2133461,93780.0,93770.0,0.13031135]
[1739905504183,0.2123461,93780.0,93770.0,0.13031135]
[1739905504686,0.2123461,93780.0,93779.0,0.23643773]
[1739905505992,0.3608,93782.0,93780.0,0.2133459]
[1739905506179,0.3608,93782.0,93779.0,0.23643773]
[1739905506380,0.2133461,93780.0,93779.0,0.23643773]
[1739905506587,0.2133461,93780.0,93779.0,0.23743773]
[1739905507086,0.2133461,93780.0,93779.0,0.04644478]
[1739905507485,0.2133461,93780.0,93779.0,0.04544478]
[1739905507689,0.2123461,93780.0,93777.0,0.2133525]
[1739905507983,0.1555,93779.0,93773.0,0.2133617]
[1739905508195,0.2133547,93777.0,93773.0,0.2133617]
[1739905508385,0.3147,93776.0,93773.0,0.2133617]
[1739905508692,0.3147,93776.0,93775.0,0.2133575]
[1739905509195,0.5280552,93776.0,93775.0,0.16025245]
[1739905509384,0.2133628,93773.0,93770.0,0.38807121]
[1739905509690,0.2133628,93773.0,93772.0,0.2133643]
[1739905509891,0.5280555,93776.0,93775.0,0.2133575]
[1739905510388,0.2133644,93772.0,93768.0,0.3608]
[1739905510588,0.2133644,93772.0,93771.0,0.2133666]
[1739905511282,0.2133644,93772.0,93770.0,0.04484444]
[1739905511283,0.004,93773.0,93772.0,0.2133643]
[1739905511485,0.003,93772.0,93768.0,0.3608]
[1739905511694,0.2163654,93772.0,93771.0,0.2133601]
[1739905511992,0.5280563,93776.0,93775.0,0.2133575]
[1739905512194,0.5280563,93776.0,93775.0,0.16025245]
[1739905513388,0.2133629,93773.0,93772.0,0.2133641]
[1739905513890,0.3147,93776.0,93770.0,0.25757438]
[1739905513891,0.2133666,93771.0,93770.0,0.25757438]
[1739905514196,0.2133666,93771.0,93770.0,0.2133688]
[1739905514495,0.2133711,93769.0,93768.0,0.3608]
[1739905514705,0.2133711,93769.0,93768.0,0.40629256]
[1739905514998,0.2133711,93769.0,93768.0,0.61966596]
[1739905515295,0.2133711,93769.0,93768.0,0.04549256]
[1739905515491,0.2133825,93764.0,93763.0,0.13031135]
[1739905515702,0.2133825,93764.0,93758.0,0.159]
[1739905515999,0.3161,93763.0,93762.0,0.2133856]
[1739905516290,0.3161,93763.0,93754.0,0.13191088]
[1739905516681,0.3161,93763.0,93757.0,0.2133981]
[1739905516995,0.3161,93763.0,93759.0,0.2133927]
[1739905517296,0.3161,93763.0,93761.0,0.2133885]
[1739905517902,0.00791627,93750.0,93729.0,0.03679414]
[1739905518192,0.00791627,93750.0,93736.0,0.00120004]
[1739905518193,0.3608,93740.0,93736.0,0.00120004]
[1739905518396,0.3321594,93739.0,93736.0,0.04384684]
[1739905518587,0.00056001,93740.0,93730.0,0.13031135]
[1739905518794,0.3608,93748.0,93731.0,0.1616]
[1739905518983,0.11872,93747.0,93738.0,0.13031135]
[1739905519185,0.3608,93748.0,93738.0,0.13031135]
[1739905519386,0.2134353,93741.0,93739.0,0.3217]
[1739905519892,0.3608,93748.0,93739.0,0.3217]
[1739905520094,0.2134287,93744.0,93739.0,0.3217]
[1739905520393,0.2134334,93742.0,93739.0,0.3217]
[1739905520598,0.2134355,93741.0,93739.0,0.3217]